[Event "Titled Tuesday Blitz February 28 Early 2023"]
[White "Derix, Bernhard"]
[Black "Kozak, Adam"]
[WhiteFideId "4642368"]
[BlackFideId "753246"]
[WhiteElo "2602"]
[BlackElo "2469"]
[Result "0-1"]
[Round "02"]
[TimeControl "180+2"]
[Date "2023.02.28"]
[WhiteClock "0:00:02"]
[BlackClock "0:00:13"]

1. Nf3 {[%clk 0:02:40]}  d5 {[%clk 0:02:57]} 2. g3 {[%clk 0:02:40]}  Nd7 {[%clk 0:02:57]} 3. d4 {[%clk 0:02:39]}  Nb6 {[%clk 0:02:57]} 4. Bg2 {[%clk 0:02:38]}  Bf5 {[%clk 0:02:57]} 5. Bf4 {[%clk 0:02:38]}  h6 {[%clk 0:02:57]} 6. O-O {[%clk 0:02:39]}  e6 {[%clk 0:02:57]} 7. a4 {[%clk 0:02:38]}  a5 {[%clk 0:02:56]} 8. Nbd2 {[%clk 0:02:32]}  Nf6 {[%clk 0:02:57]} 9. Ne5 {[%clk 0:02:28]}  Be7 {[%clk 0:02:55]} 10. c4 {[%clk 0:02:24]}  c6 {[%clk 0:02:54]} 11. Qb3 {[%clk 0:02:22]}  Bb4 {[%clk 0:02:51]} 12. Ndf3 {[%clk 0:02:18]}  O-O {[%clk 0:02:49]} 13. Rad1 {[%clk 0:02:12]}  Be4 {[%clk 0:02:47]} 14. c5 {[%clk 0:02:08]}  Nbd7 {[%clk 0:02:46]} 15. Nxd7 {[%clk 0:02:05]}  Nxd7 {[%clk 0:02:44]} 16. Bd6 {[%clk 0:01:58]}  Re8 {[%clk 0:02:43]} 17. Ne5 {[%clk 0:01:59]}  Bxg2 {[%clk 0:02:41]} 18. Kxg2 {[%clk 0:01:59]}  Nxe5 {[%clk 0:02:39]} 19. dxe5 {[%clk 0:01:58]}  b6 {[%clk 0:02:39]} 20. cxb6 {[%clk 0:01:49]}  Qxb6 {[%clk 0:02:40]} 21. e4 {[%clk 0:01:44]}  dxe4 {[%clk 0:02:32]} 22. Rfe1 {[%clk 0:01:37]}  c5 {[%clk 0:02:16]} 23. Rxe4 {[%clk 0:01:33]}  Qc6 {[%clk 0:02:16]} 24. Qf3 {[%clk 0:01:33]}  Qxa4 {[%clk 0:02:12]} 25. h4 {[%clk 0:01:29]}  Qc2 {[%clk 0:02:07]} 26. h5 {[%clk 0:01:26]}  Rad8 {[%clk 0:02:03]} 27. g4 {[%clk 0:01:25]}  Rf8 {[%clk 0:01:36]} 28. g5 {[%clk 0:01:25]}  hxg5 {[%clk 0:01:36]} 29. h6 {[%clk 0:01:26]}  f5 {[%clk 0:01:32]} 30. Re3 {[%clk 0:00:25]}  g4 {[%clk 0:01:22]} 31. Qb7 {[%clk 0:00:25]}  Rf7 {[%clk 0:01:10]} 32. h7+ {[%clk 0:00:25]}  Kh8 {[%clk 0:01:10]} 33. Qxf7 {[%clk 0:00:24]}  Qxd1 {[%clk 0:01:11]} 34. Bf8 {[%clk 0:00:25]}  Rxf8 {[%clk 0:00:32]} 35. Qxf8+ {[%clk 0:00:25]}  Kxh7 {[%clk 0:00:32]} 36. Qf7 {[%clk 0:00:25]}  Qd5+ {[%clk 0:00:29]} 37. Kh2 {[%clk 0:00:25]}  c4 {[%clk 0:00:28]} 38. Re1 {[%clk 0:00:16]}  Qf3 {[%clk 0:00:16]} 39. Qh5+ {[%clk 0:00:12]}  Kg8 {[%clk 0:00:17]} 40. Qe8+ {[%clk 0:00:11]}  Kh7 {[%clk 0:00:17]} 41. Qh5+ {[%clk 0:00:11]}  Kg8 {[%clk 0:00:18]} 42. Qe8+ {[%clk 0:00:11]}  Bf8 {[%clk 0:00:19]} 43. Qxe6+ {[%clk 0:00:11]}  Kh7 {[%clk 0:00:19]} 44. Rf1 {[%clk 0:00:11]}  g3+ {[%clk 0:00:16]} 45. Kg1 {[%clk 0:00:11]}  g2 {[%clk 0:00:14]} 46. Re1 {[%clk 0:00:10]}  Qh3 {[%clk 0:00:14]} 47. f4 {[%clk 0:00:02]}  Bc5+ {[%clk 0:00:13]} 0-1


[Site "https://www.chess.com"]

[Event "Titled Tuesday Blitz February 28 Early 2023"]
[White "Vokhidov, Shamsiddin"]
[Black "Czopor, Maciej"]
[WhiteFideId "14204223"]
[BlackFideId "21805431"]
[WhiteElo "2570"]
[BlackElo "2324"]
[Result "1-0"]
[Round "02"]
[TimeControl "180+2"]
[Date "2023.02.28"]
[WhiteClock "0:00:51"]
[BlackClock "0:00:02"]

1. e4 {[%clk 0:03:00]}  g6 {[%clk 0:02:48]} 2. d4 {[%clk 0:03:01]}  c6 {[%clk 0:02:48]} 3. Nf3 {[%clk 0:03:00]}  Bg7 {[%clk 0:02:49]} 4. Bc4 {[%clk 0:02:59]}  d5 {[%clk 0:02:45]} 5. Bb3 {[%clk 0:02:59]}  Bg4 {[%clk 0:02:40]} 6. h3 {[%clk 0:02:53]}  Bxf3 {[%clk 0:02:40]} 7. Qxf3 {[%clk 0:02:53]}  e6 {[%clk 0:02:39]} 8. c3 {[%clk 0:02:50]}  dxe4 {[%clk 0:02:36]} 9. Qxe4 {[%clk 0:02:51]}  Nf6 {[%clk 0:02:37]} 10. Qf3 {[%clk 0:02:51]}  O-O {[%clk 0:02:38]} 11. O-O {[%clk 0:02:52]}  Nbd7 {[%clk 0:02:38]} 12. Nd2 {[%clk 0:02:51]}  Nb6 {[%clk 0:02:22]} 13. Re1 {[%clk 0:02:27]}  Re8 {[%clk 0:02:21]} 14. a4 {[%clk 0:02:26]}  a5 {[%clk 0:02:10]} 15. Nf1 {[%clk 0:02:26]}  Qd7 {[%clk 0:02:04]} 16. Bg5 {[%clk 0:02:24]}  Nfd5 {[%clk 0:02:04]} 17. h4 {[%clk 0:02:24]}  h6 {[%clk 0:02:01]} 18. Bd2 {[%clk 0:02:24]}  h5 {[%clk 0:01:58]} 19. g4 {[%clk 0:02:24]}  hxg4 {[%clk 0:01:57]} 20. Qxg4 {[%clk 0:02:25]}  Nf6 {[%clk 0:01:57]} 21. Qf3 {[%clk 0:02:26]}  Nh5 {[%clk 0:01:40]} 22. Rad1 {[%clk 0:02:22]}  Nd5 {[%clk 0:01:35]} 23. Ng3 {[%clk 0:02:22]}  Ndf6 {[%clk 0:01:34]} 24. Bg5 {[%clk 0:02:21]}  Nxg3 {[%clk 0:01:24]} 25. fxg3 {[%clk 0:02:22]}  Nh7 {[%clk 0:01:24]} 26. Bf4 {[%clk 0:02:21]}  Rad8 {[%clk 0:01:01]} 27. h5 {[%clk 0:02:19]}  gxh5 {[%clk 0:00:58]} 28. Bc2 {[%clk 0:02:18]}  f5 {[%clk 0:00:56]} 29. Bb3 {[%clk 0:02:14]}  Nf6 {[%clk 0:00:53]} 30. Bg5 {[%clk 0:02:14]}  Qf7 {[%clk 0:00:47]} 31. Re5 {[%clk 0:02:13]}  Qg6 {[%clk 0:00:36]} 32. Rxe6 {[%clk 0:02:00]}  Kh8 {[%clk 0:00:36]} 33. Bh4 {[%clk 0:01:56]}  Rc8 {[%clk 0:00:16]} 34. Rf1 {[%clk 0:01:52]}  Rxe6 {[%clk 0:00:02]} 35. Bxe6 {[%clk 0:01:53]}  Rf8 {[%clk 0:00:03]} 36. Qxf5 {[%clk 0:01:51]}  Qe8 {[%clk 0:00:03]} 37. Qe5 {[%clk 0:01:44]}  Ng4 {[%clk 0:00:02]} 38. Rxf8+ {[%clk 0:01:43]}  Qxf8 {[%clk 0:00:01]} 39. Qxh5+ {[%clk 0:01:44]}  Nh6 {[%clk 0:00:01]} 40. Bg5 {[%clk 0:01:41]}  Kh7 {[%clk 0:00:01]} 41. Bxh6 {[%clk 0:01:41]}  Bxh6 {[%clk 0:00:02]} 42. Qxa5 {[%clk 0:01:40]}  Be3+ {[%clk 0:00:01]} 43. Kg2 {[%clk 0:01:39]}  Qf2+ {[%clk 0:00:01]} 44. Kh3 {[%clk 0:01:40]}  Qf1+ {[%clk 0:00:02]} 45. Kg4 {[%clk 0:01:38]}  Qd1+ {[%clk 0:00:02]} 46. Kh4 {[%clk 0:01:34]}  Qh1+ {[%clk 0:00:01]} 47. Bh3 {[%clk 0:01:35]}  Qe4+ {[%clk 0:00:02]} 48. g4 {[%clk 0:01:24]}  Bf2+ {[%clk 0:00:02]} 49. Kg5 {[%clk 0:01:22]}  Be3+ {[%clk 0:00:02]} 50. Kf6 {[%clk 0:01:17]}  Qf4+ {[%clk 0:00:02]} 51. Qf5+ {[%clk 0:01:16]}  Qxf5+ {[%clk 0:00:02]} 52. gxf5 {[%clk 0:01:16]}  Bc1 {[%clk 0:00:03]} 53. b3 {[%clk 0:01:06]}  Bb2 {[%clk 0:00:03]} 54. Ke7 {[%clk 0:01:06]}  Bxc3 {[%clk 0:00:04]} 55. f6 {[%clk 0:01:05]}  Bxd4 {[%clk 0:00:04]} 56. f7 {[%clk 0:01:03]}  Bc5+ {[%clk 0:00:04]} 57. Kd7 {[%clk 0:01:01]}  Kg7 {[%clk 0:00:05]} 58. Be6 {[%clk 0:01:00]}  Bb4 {[%clk 0:00:01]} 59. Kc7 {[%clk 0:01:00]}  b5 {[%clk 0:00:01]} 60. Kxc6 {[%clk 0:00:50]}  bxa4 {[%clk 0:00:01]} 61. bxa4 {[%clk 0:00:51]}  Kf6 {[%clk 0:00:02]} 62. Kb5 {[%clk 0:00:51]} 1-0


[Site "https://www.chess.com"]

[Event "Titled Tuesday Blitz February 28 Early 2023"]
[White "Odegov, Artem"]
[Black "Mitrabha, Guha"]
[WhiteFideId "34183644"]
[BlackFideId "5057000"]
[WhiteElo "2300"]
[BlackElo "2520"]
[Result "0-1"]
[Round "02"]
[TimeControl "180+2"]
[Date "2023.02.28"]
[WhiteClock "0:00:47"]
[BlackClock "0:01:27"]

1. d4 {[%clk 0:03:00]}  Nf6 {[%clk 0:02:55]} 2. c4 {[%clk 0:03:00]}  c5 {[%clk 0:02:53]} 3. d5 {[%clk 0:03:00]}  e6 {[%clk 0:02:54]} 4. Nc3 {[%clk 0:02:59]}  d6 {[%clk 0:02:53]} 5. Nf3 {[%clk 0:02:57]}  g6 {[%clk 0:02:53]} 6. e4 {[%clk 0:02:44]}  a6 {[%clk 0:02:51]} 7. a4 {[%clk 0:02:42]}  exd5 {[%clk 0:02:51]} 8. cxd5 {[%clk 0:02:43]}  Bg4 {[%clk 0:02:50]} 9. Be2 {[%clk 0:02:42]}  Bxf3 {[%clk 0:02:49]} 10. gxf3 {[%clk 0:02:43]}  Nbd7 {[%clk 0:02:49]} 11. f4 {[%clk 0:02:43]}  Bg7 {[%clk 0:02:46]} 12. Be3 {[%clk 0:02:43]}  O-O {[%clk 0:02:46]} 13. Qc2 {[%clk 0:02:38]}  Re8 {[%clk 0:02:46]} 14. O-O {[%clk 0:02:37]}  Qe7 {[%clk 0:02:42]} 15. Bf3 {[%clk 0:02:37]}  c4 {[%clk 0:02:23]} 16. Rfe1 {[%clk 0:02:32]}  Rab8 {[%clk 0:02:21]} 17. a5 {[%clk 0:02:26]}  Rbc8 {[%clk 0:02:21]} 18. Rad1 {[%clk 0:02:22]}  Nc5 {[%clk 0:02:21]} 19. Bxc5 {[%clk 0:02:11]}  Rxc5 {[%clk 0:02:20]} 20. e5 {[%clk 0:02:10]}  dxe5 {[%clk 0:01:54]} 21. fxe5 {[%clk 0:02:02]}  Nd7 {[%clk 0:01:53]} 22. e6 {[%clk 0:02:02]}  Ne5 {[%clk 0:01:48]} 23. Bg2 {[%clk 0:02:00]}  fxe6 {[%clk 0:01:47]} 24. dxe6 {[%clk 0:02:01]}  Kh8 {[%clk 0:01:45]} 25. Nd5 {[%clk 0:01:46]}  Qh4 {[%clk 0:01:40]} 26. Re4 {[%clk 0:01:33]}  Qh5 {[%clk 0:01:37]} 27. f4 {[%clk 0:00:58]}  Nd3 {[%clk 0:01:27]} 28. Rxd3 {[%clk 0:00:47]}  cxd3 {[%clk 0:01:27]} 29. Qxc5 {[%clk 0:00:47]}  d2 {[%clk 0:01:27]} 30. Ne3 {[%clk 0:00:47]}  Qxc5 {[%clk 0:01:27]} 0-1


[Site "https://www.chess.com"]

[Event "Titled Tuesday Blitz February 28 Early 2023"]
[White "Bacrot, Etienne"]
[Black "Martynov, Pavel"]
[WhiteFideId "605506"]
[BlackFideId "4101260"]
[WhiteElo "2667"]
[BlackElo "2314"]
[Result "1-0"]
[Round "02"]
[TimeControl "180+2"]
[Date "2023.02.28"]
[WhiteClock "0:01:07"]
[BlackClock "0:00:33"]

1. e4 {[%clk 0:03:00]}  c5 {[%clk 0:02:59]} 2. Nf3 {[%clk 0:02:58]}  e6 {[%clk 0:02:59]} 3. b3 {[%clk 0:02:57]}  Nc6 {[%clk 0:02:57]} 4. Bb2 {[%clk 0:02:57]}  a6 {[%clk 0:02:57]} 5. c4 {[%clk 0:02:56]}  Qc7 {[%clk 0:02:55]} 6. Nc3 {[%clk 0:02:57]}  Nf6 {[%clk 0:02:53]} 7. g3 {[%clk 0:02:56]}  d6 {[%clk 0:02:52]} 8. Bg2 {[%clk 0:02:56]}  Be7 {[%clk 0:02:53]} 9. O-O {[%clk 0:02:56]}  O-O {[%clk 0:02:53]} 10. d4 {[%clk 0:02:57]}  cxd4 {[%clk 0:02:53]} 11. Nxd4 {[%clk 0:02:57]}  Ne5 {[%clk 0:02:53]} 12. h3 {[%clk 0:02:51]}  Rb8 {[%clk 0:02:31]} 13. Qe2 {[%clk 0:02:50]}  b6 {[%clk 0:02:31]} 14. f4 {[%clk 0:02:37]}  Ned7 {[%clk 0:02:28]} 15. g4 {[%clk 0:02:37]}  Bb7 {[%clk 0:02:10]} 16. g5 {[%clk 0:02:37]}  Ne8 {[%clk 0:02:08]} 17. Rad1 {[%clk 0:02:32]}  Rc8 {[%clk 0:01:41]} 18. h4 {[%clk 0:02:27]}  Qb8 {[%clk 0:01:37]} 19. h5 {[%clk 0:02:21]}  Bd8 {[%clk 0:01:11]} 20. Bh3 {[%clk 0:02:01]}  Kh8 {[%clk 0:01:01]} 21. h6 {[%clk 0:01:52]}  gxh6 {[%clk 0:00:48]} 22. Nd5 {[%clk 0:01:41]}  e5 {[%clk 0:00:45]} 23. Bxd7 {[%clk 0:01:40]}  exd4 {[%clk 0:00:41]} 24. Bxd4+ {[%clk 0:01:37]}  f6 {[%clk 0:00:42]} 25. Bxe8 {[%clk 0:01:32]}  Bxd5 {[%clk 0:00:41]} 26. exd5 {[%clk 0:01:31]}  hxg5 {[%clk 0:00:37]} 27. fxg5 {[%clk 0:01:31]}  Rg8 {[%clk 0:00:35]} 28. g6 {[%clk 0:01:24]}  hxg6 {[%clk 0:00:34]} 29. Rxf6 {[%clk 0:01:17]}  Bxf6 {[%clk 0:00:30]} 30. Bxf6+ {[%clk 0:01:17]}  Rg7 {[%clk 0:00:31]} 31. Bxg7+ {[%clk 0:01:09]}  Kxg7 {[%clk 0:00:32]} 32. Qe7+ {[%clk 0:01:08]}  Kh6 {[%clk 0:00:33]} 33. Kg2 {[%clk 0:01:07]} 1-0


[Site "https://www.chess.com"]

[Event "Titled Tuesday Blitz February 28 Early 2023"]
[White "Gabdrakhmanov, Azat"]
[Black "Bernadskiy, Vitaliy"]
[WhiteFideId "34189197"]
[BlackFideId "14100371"]
[WhiteElo "2315"]
[BlackElo "2488"]
[Result "0-1"]
[Round "02"]
[TimeControl "180+2"]
[Date "2023.02.28"]
[WhiteClock "0:00:44"]
[BlackClock "0:01:48"]

1. e4 {[%clk 0:03:00]}  b6 {[%clk 0:03:00]} 2. d3 {[%clk 0:03:00]}  Bb7 {[%clk 0:03:01]} 3. Nd2 {[%clk 0:03:00]}  g6 {[%clk 0:03:00]} 4. g3 {[%clk 0:03:01]}  Bg7 {[%clk 0:03:00]} 5. Bg2 {[%clk 0:03:01]}  e6 {[%clk 0:03:00]} 6. Ngf3 {[%clk 0:03:01]}  Ne7 {[%clk 0:03:01]} 7. O-O {[%clk 0:03:01]}  O-O {[%clk 0:03:02]} 8. c3 {[%clk 0:03:01]}  a5 {[%clk 0:02:59]} 9. Re1 {[%clk 0:03:00]}  Na6 {[%clk 0:02:59]} 10. h4 {[%clk 0:02:59]}  h6 {[%clk 0:02:55]} 11. d4 {[%clk 0:02:59]}  c5 {[%clk 0:02:54]} 12. dxc5 {[%clk 0:02:47]}  Nxc5 {[%clk 0:02:54]} 13. Qc2 {[%clk 0:02:46]}  Rc8 {[%clk 0:02:52]} 14. Nb3 {[%clk 0:02:42]}  d5 {[%clk 0:02:45]} 15. exd5 {[%clk 0:02:33]}  Nxd5 {[%clk 0:02:35]} 16. Nxc5 {[%clk 0:02:28]}  Rxc5 {[%clk 0:02:35]} 17. Qe2 {[%clk 0:02:21]}  Qa8 {[%clk 0:02:28]} 18. c4 {[%clk 0:01:47]}  Nf6 {[%clk 0:02:12]} 19. Rd1 {[%clk 0:01:33]}  Rfc8 {[%clk 0:02:06]} 20. b3 {[%clk 0:01:13]}  Rf5 {[%clk 0:02:03]} 21. Ne1 {[%clk 0:01:01]}  Bxg2 {[%clk 0:02:03]} 22. Nxg2 {[%clk 0:01:01]}  Ne4 {[%clk 0:02:03]} 23. Bf4 {[%clk 0:00:52]}  g5 {[%clk 0:01:55]} 24. hxg5 {[%clk 0:00:49]}  hxg5 {[%clk 0:01:55]} 25. Ne3 {[%clk 0:00:45]}  gxf4 {[%clk 0:01:48]} 26. Nxf5 {[%clk 0:00:44]}  exf5 {[%clk 0:01:48]} 0-1


[Site "https://www.chess.com"]

[Event "Titled Tuesday Blitz February 28 Early 2023"]
[White "Mamedov, Edgar"]
[Black "Boros, Denes"]
[WhiteFideId "13739980"]
[BlackFideId "722340"]
[WhiteElo "2330"]
[BlackElo "2464"]
[Result "1-0"]
[Round "02"]
[TimeControl "180+2"]
[Date "2023.02.28"]
[WhiteClock "0:00:02"]
[BlackClock "0:00:33"]

1. d4 {[%clk 0:02:59]}  g6 {[%clk 0:03:00]} 2. Nf3 {[%clk 0:02:59]}  Bg7 {[%clk 0:03:00]} 3. c4 {[%clk 0:02:59]}  d5 {[%clk 0:02:58]} 4. cxd5 {[%clk 0:02:57]}  Nf6 {[%clk 0:02:59]} 5. g3 {[%clk 0:02:55]}  c6 {[%clk 0:02:56]} 6. dxc6 {[%clk 0:02:53]}  Nxc6 {[%clk 0:02:57]} 7. Bg2 {[%clk 0:02:53]}  e5 {[%clk 0:02:58]} 8. O-O {[%clk 0:02:21]}  exd4 {[%clk 0:02:50]} 9. Na3 {[%clk 0:02:21]}  O-O {[%clk 0:02:49]} 10. Nc2 {[%clk 0:02:13]}  Qb6 {[%clk 0:02:39]} 11. Ncxd4 {[%clk 0:02:07]}  Rd8 {[%clk 0:02:39]} 12. e3 {[%clk 0:02:06]}  Ne4 {[%clk 0:02:38]} 13. Qb3 {[%clk 0:02:05]}  Qxb3 {[%clk 0:02:24]} 14. axb3 {[%clk 0:02:01]}  Nc5 {[%clk 0:02:16]} 15. Nxc6 {[%clk 0:01:51]}  bxc6 {[%clk 0:02:16]} 16. Ra3 {[%clk 0:01:40]}  Ba6 {[%clk 0:02:07]} 17. Re1 {[%clk 0:01:07]}  Bb5 {[%clk 0:01:55]} 18. Nd4 {[%clk 0:01:02]}  Nd3 {[%clk 0:01:49]} 19. Rd1 {[%clk 0:01:01]}  Bxd4 {[%clk 0:01:40]} 20. exd4 {[%clk 0:01:00]}  Nxc1 {[%clk 0:01:41]} 21. Rxc1 {[%clk 0:00:59]}  Rxd4 {[%clk 0:01:41]} 22. Raa1 {[%clk 0:00:49]}  Rd6 {[%clk 0:01:34]} 23. Rc3 {[%clk 0:00:41]}  Rad8 {[%clk 0:01:32]} 24. h4 {[%clk 0:00:35]}  Rd1+ {[%clk 0:01:30]} 25. Rxd1 {[%clk 0:00:33]}  Rxd1+ {[%clk 0:01:31]} 26. Kh2 {[%clk 0:00:33]}  Rd2 {[%clk 0:01:32]} 27. Bxc6 {[%clk 0:00:24]}  Bxc6 {[%clk 0:01:26]} 28. Rxc6 {[%clk 0:00:23]}  Rxf2+ {[%clk 0:01:26]} 29. Kg1 {[%clk 0:00:22]}  Rxb2 {[%clk 0:01:26]} 30. Rc3 {[%clk 0:00:11]}  h6 {[%clk 0:00:54]} 31. g4 {[%clk 0:00:11]}  Rd2 {[%clk 0:00:53]} 32. g5 {[%clk 0:00:07]}  hxg5 {[%clk 0:00:46]} 33. hxg5 {[%clk 0:00:08]}  Kg7 {[%clk 0:00:46]} 34. Kf1 {[%clk 0:00:05]}  Kf8 {[%clk 0:00:45]} 35. Re3 {[%clk 0:00:04]}  Rd5 {[%clk 0:00:42]} 36. Rg3 {[%clk 0:00:03]}  Re5 {[%clk 0:00:42]} 37. Kf2 {[%clk 0:00:03]}  Ke7 {[%clk 0:00:43]} 38. Kf3 {[%clk 0:00:03]}  Ke6 {[%clk 0:00:42]} 39. Kf4 {[%clk 0:00:03]}  a5 {[%clk 0:00:41]} 40. Rc3 {[%clk 0:00:03]}  Rf5+ {[%clk 0:00:41]} 41. Kg4 {[%clk 0:00:03]}  Kd5 {[%clk 0:00:41]} 42. Rd3+ {[%clk 0:00:03]}  Kc5 {[%clk 0:00:41]} 43. Rd7 {[%clk 0:00:03]}  Kb4 {[%clk 0:00:41]} 44. Rb7+ {[%clk 0:00:03]}  Rb5 {[%clk 0:00:40]} 45. Rxf7 {[%clk 0:00:02]}  Kxb3 {[%clk 0:00:41]} 46. Rf6 {[%clk 0:00:03]}  a4 {[%clk 0:00:41]} 47. Rxg6 {[%clk 0:00:03]}  a3 {[%clk 0:00:41]} 48. Rh6 {[%clk 0:00:03]}  Rb4+ {[%clk 0:00:36]} 49. Kf5 {[%clk 0:00:02]}  Rc4 {[%clk 0:00:34]} 50. Rh1 {[%clk 0:00:02]}  Rc5+ {[%clk 0:00:31]} 51. Kf6 {[%clk 0:00:03]}  Kb2 {[%clk 0:00:32]} 52. Rh2+ {[%clk 0:00:03]}  Rc2 {[%clk 0:00:31]} 53. Rh1 {[%clk 0:00:03]}  Rc6+ {[%clk 0:00:30]} 54. Kf5 {[%clk 0:00:03]}  a2 {[%clk 0:00:31]} 55. Rh2+ {[%clk 0:00:02]}  Kb3 {[%clk 0:00:31]} 56. Rxa2 {[%clk 0:00:02]}  Rc5+ {[%clk 0:00:32]} 57. Kf6 {[%clk 0:00:02]}  Rc2 {[%clk 0:00:33]} 58. Rxc2 {[%clk 0:00:02]} 1-0


[Site "https://www.chess.com"]

[Event "Titled Tuesday Blitz February 28 Early 2023"]
[White "Livaic, Leon"]
[Black "Sourath Biswas"]
[WhiteFideId "14531534"]
[BlackFideId "35091484"]
[WhiteElo "2509"]
[BlackElo "2164"]
[Result "1-0"]
[Round "02"]
[TimeControl "180+2"]
[Date "2023.02.28"]
[WhiteClock "0:00:24"]
[BlackClock "0:00:06"]

1. d4 {[%clk 0:03:00]}  Nf6 {[%clk 0:02:57]} 2. Bg5 {[%clk 0:03:01]}  d5 {[%clk 0:02:53]} 3. Nd2 {[%clk 0:02:58]}  c5 {[%clk 0:02:53]} 4. e3 {[%clk 0:02:57]}  Nc6 {[%clk 0:02:52]} 5. Bxf6 {[%clk 0:02:52]}  gxf6 {[%clk 0:02:53]} 6. dxc5 {[%clk 0:02:50]}  e5 {[%clk 0:02:42]} 7. Nb3 {[%clk 0:02:50]}  Bxc5 {[%clk 0:02:42]} 8. Nxc5 {[%clk 0:02:51]}  Qa5+ {[%clk 0:02:42]} 9. c3 {[%clk 0:02:52]}  Qxc5 {[%clk 0:02:43]} 10. Ne2 {[%clk 0:02:48]}  Bg4 {[%clk 0:02:39]} 11. Qb3 {[%clk 0:02:46]}  Na5 {[%clk 0:02:31]} 12. Qa4+ {[%clk 0:02:46]}  Bd7 {[%clk 0:02:31]} 13. Qh4 {[%clk 0:02:44]}  Qb6 {[%clk 0:02:29]} 14. Qb4 {[%clk 0:02:15]}  Qxb4 {[%clk 0:02:05]} 15. cxb4 {[%clk 0:02:16]}  Nc6 {[%clk 0:02:06]} 16. a3 {[%clk 0:02:16]}  a6 {[%clk 0:02:02]} 17. Nc3 {[%clk 0:02:14]}  Be6 {[%clk 0:02:02]} 18. b5 {[%clk 0:02:10]}  axb5 {[%clk 0:02:00]} 19. Bxb5 {[%clk 0:02:10]}  Ke7 {[%clk 0:02:00]} 20. O-O-O {[%clk 0:02:09]}  d4 {[%clk 0:01:54]} 21. Ne2 {[%clk 0:01:30]}  dxe3 {[%clk 0:01:52]} 22. Bxc6 {[%clk 0:01:28]}  Rac8 {[%clk 0:01:47]} 23. fxe3 {[%clk 0:01:28]}  Rxc6+ {[%clk 0:01:47]} 24. Nc3 {[%clk 0:01:29]}  Bf5 {[%clk 0:01:48]} 25. Kd2 {[%clk 0:01:22]}  Rd8+ {[%clk 0:01:46]} 26. Ke1 {[%clk 0:01:22]}  Rxd1+ {[%clk 0:00:46]} 27. Kxd1 {[%clk 0:01:23]}  Rd6+ {[%clk 0:00:47]} 28. Kc1 {[%clk 0:01:09]}  Bg4 {[%clk 0:00:28]} 29. h3 {[%clk 0:01:02]}  Bd7 {[%clk 0:00:28]} 30. Rd1 {[%clk 0:01:00]}  Bc6 {[%clk 0:00:28]} 31. g3 {[%clk 0:00:58]}  f5 {[%clk 0:00:26]} 32. Rxd6 {[%clk 0:00:58]}  Kxd6 {[%clk 0:00:26]} 33. b4 {[%clk 0:00:56]}  Bg2 {[%clk 0:00:20]} 34. h4 {[%clk 0:00:56]}  Ke6 {[%clk 0:00:20]} 35. Kd2 {[%clk 0:00:54]}  Kf6 {[%clk 0:00:20]} 36. a4 {[%clk 0:00:54]}  Kg6 {[%clk 0:00:19]} 37. b5 {[%clk 0:00:54]}  Kh5 {[%clk 0:00:19]} 38. e4 {[%clk 0:00:49]}  fxe4 {[%clk 0:00:17]} 39. Ke3 {[%clk 0:00:47]}  f5 {[%clk 0:00:18]} 40. a5 {[%clk 0:00:47]}  Kg4 {[%clk 0:00:16]} 41. Nd5 {[%clk 0:00:41]}  Kxg3 {[%clk 0:00:14]} 42. a6 {[%clk 0:00:31]}  f4+ {[%clk 0:00:14]} 43. Ke2 {[%clk 0:00:31]}  bxa6 {[%clk 0:00:09]} 44. b6 {[%clk 0:00:28]}  f3+ {[%clk 0:00:06]} 45. Kd2 {[%clk 0:00:26]}  f2 {[%clk 0:00:07]} 46. Ne3 {[%clk 0:00:26]}  f1=Q {[%clk 0:00:05]} 47. Nxf1+ {[%clk 0:00:26]}  Bxf1 {[%clk 0:00:06]} 48. Ke3 {[%clk 0:00:24]} 1-0


[Site "https://www.chess.com"]

[Event "Titled Tuesday Blitz February 28 Early 2023"]
[White "Pinheiro, Iung Alicio de O."]
[Black "Indjic, Aleksandar"]
[WhiteFideId "2104350"]
[BlackFideId "911925"]
[WhiteElo "2283"]
[BlackElo "2625"]
[Result "0-1"]
[Round "02"]
[TimeControl "180+2"]
[Date "2023.02.28"]
[WhiteClock "0:00:04"]
[BlackClock "0:01:01"]

1. e4 {[%clk 0:03:00]}  c5 {[%clk 0:03:00]} 2. Nf3 {[%clk 0:03:00]}  d6 {[%clk 0:03:00]} 3. Nc3 {[%clk 0:02:59]}  Nf6 {[%clk 0:03:01]} 4. d4 {[%clk 0:02:59]}  cxd4 {[%clk 0:03:00]} 5. Nxd4 {[%clk 0:03:00]}  a6 {[%clk 0:03:01]} 6. a3 {[%clk 0:03:01]}  e5 {[%clk 0:03:01]} 7. Nf5 {[%clk 0:03:01]}  d5 {[%clk 0:02:59]} 8. Bg5 {[%clk 0:02:59]}  d4 {[%clk 0:02:54]} 9. Bxf6 {[%clk 0:02:59]}  gxf6 {[%clk 0:02:53]} 10. Nb1 {[%clk 0:03:00]}  Be6 {[%clk 0:02:52]} 11. Nd2 {[%clk 0:02:58]}  Qb6 {[%clk 0:02:52]} 12. Bd3 {[%clk 0:02:33]}  h5 {[%clk 0:02:46]} 13. O-O {[%clk 0:02:23]}  Nd7 {[%clk 0:02:46]} 14. c3 {[%clk 0:01:52]}  dxc3 {[%clk 0:02:44]} 15. bxc3 {[%clk 0:01:52]}  Qc6 {[%clk 0:02:44]} 16. Qe2 {[%clk 0:01:49]}  Rg8 {[%clk 0:02:42]} 17. g3 {[%clk 0:01:40]}  h4 {[%clk 0:02:21]} 18. Nxh4 {[%clk 0:01:25]}  Bh6 {[%clk 0:02:21]} 19. Nc4 {[%clk 0:01:16]}  Nc5 {[%clk 0:02:19]} 20. Ne3 {[%clk 0:01:13]}  Bxe3 {[%clk 0:02:17]} 21. Qxe3 {[%clk 0:01:13]}  O-O-O {[%clk 0:02:16]} 22. Bc2 {[%clk 0:01:10]}  Rg4 {[%clk 0:01:55]} 23. f3 {[%clk 0:01:06]}  Rxh4 {[%clk 0:01:43]} 24. gxh4 {[%clk 0:01:06]}  Rh8 {[%clk 0:01:43]} 25. Qf2 {[%clk 0:01:02]}  Bc4 {[%clk 0:01:39]} 26. Rfd1 {[%clk 0:01:01]}  Ne6 {[%clk 0:01:39]} 27. Kh1 {[%clk 0:01:00]}  Nf4 {[%clk 0:01:38]} 28. Rd2 {[%clk 0:00:57]}  Be6 {[%clk 0:01:36]} 29. Qe3 {[%clk 0:00:51]}  Rxh4 {[%clk 0:01:33]} 30. Rg1 {[%clk 0:00:49]}  Rh8 {[%clk 0:01:33]} 31. Rgd1 {[%clk 0:00:48]}  Qc7 {[%clk 0:01:12]} 32. Qa7 {[%clk 0:00:43]}  Qxc3 {[%clk 0:01:05]} 33. Rd8+ {[%clk 0:00:31]}  Kc7 {[%clk 0:01:04]} 34. Qb8+ {[%clk 0:00:18]}  Kb6 {[%clk 0:01:04]} 35. R8d6+ {[%clk 0:00:04]}  Ka5 {[%clk 0:01:01]} 0-1


[Site "https://www.chess.com"]